Cogmind - Beta 9.4 @@@ ROGUE MODE // 2020.03.20 @ 21:04:46 Player: Nalzok Result: Destroyed by Y-45 Defender with Heavy Assault Rifle Performance ------------- Evolutions (2) 1000 Regions Visited (4) 800 Robots Destroyed (23) 115 Value Destroyed (525) 525 Prototype IDs (0) 0 Alien Tech Used (0) 0 Bonus (0) 0 TOTAL SCORE: 2440 Bonus ------- None Cogmind --------- Core Integrity 0/550 Matter 200/300 Energy 100/100 System Corruption 0% Temperature Cool (9) Movement Core (300) Ox5 Location -8/Materials Parts ------- > --- POWER (2) -------- (None) > --- PROPULSION (5) --- (None) > --- UTILITY (2) ------ Large Storage Unit Visual Processing Unit > --- WEAPON (2) ------- Mini Grenade Launcher > --- INVENTORY (10) --- Large Storage Unit Sensor Array Improved Shield Generator Arc Projector Pulse Rifle Heavy Laser Gauss Rifle Great Maul Peak State ------------ > --- POWER ------------ Light Ion Engine Light Nuclear Core > --- PROPULSION ------- Flight Unit VTOL Module VTOL Module VTOL Module VTOL Module > --- UTILITY ---------- Large Storage Unit Visual Processing Unit > --- WEAPON ----------- Greatsword > --- INVENTORY -------- Large Storage Unit Sensor Array Improved Shield Generator Arc Projector Pulse Rifle Heavy Laser Gauss Rifle Mini Grenade Launcher Mini Grenade Launcher Mini Grenade Launcher [Rating: 26] Favorites ----------- Power Light Ion Engine Engine Light Ion Engine Power Core Light Nuclear Core Propulsion VTOL Module Leg Aluminum Leg Flight Unit VTOL Module Utility Visual Processing Unit Storage Large Storage Unit Processor Visual Processing Unit Weapon Mini Grenade Launcher Energy Gun Medium Laser Ballistic Gun Assault Rifle Launcher Mini Grenade Launcher Impact Weapon Great Maul Slashing Weapon Greatsword Build | -11 -10 -9 -9 -8 ------- Run | Scr Mat Mat Min Mat Slots Evolved 4 | . . 2 . 2 Power 1 | . . . . 1 Propulsion 3 | . . 2 . 1 Utility . | . . . . . Weapon . | . . . . . Parts Attached 30 | . 13 8 2 7 Power 5 | . 2 2 . 1 Engine 4 | . 2 2 . . Core 1 | . . . . 1 Reactor . | . . . . . Propulsion 9 | . 4 4 . 1 Treads . | . . . . . Leg 4 | . 4 . . . Wheel . | . . . . . Hover . | . . . . . Flight 5 | . . 4 . 1 Utility 4 | . 2 1 1 . Device . | . . . . . Storage 3 | . 1 1 1 . Processor 1 | . 1 . . . Hackware . | . . . . . Protection . | . . . . . Artifact . | . . . . . Weapon 12 | . 5 1 1 5 Energy Gun . | . . . . . Energy Cannon . | . . . . . Ballistic Gun 6 | . 4 1 1 . Ballistic Cannon . | . . . . . Launcher 3 | . 1 . . 2 Special Weapon . | . . . . . Impact Weapon 1 | . . . . 1 Slashing Weapon 2 | . . . . 2 Piercing Weapon . | . . . . . Special Melee Weapon . | . . . . . Unidentified Prototypes . | . . . . . Parts Lost 6 | . . . . 6 Power 1 | . . . . 1 Propulsion 4 | . . . . 4 Utility . | . . . . . Weapon 1 | . . . . 1 Highest Loss Streak 5 | . . . . 5 Average Slot Usage (%) 85 | . 88 96 88 70 Engine 10 | . 14 11 11 5 Leg 8 | . 27 . . . Flight 27 | . . 44 44 36 Storage 11 | . 14 11 11 9 Processor 10 | . 9 11 11 9 Ballistic Gun 7 | . 19 7 . . Launcher 5 | . . 11 11 2 Naked Turns . | . . . . . Heaviest Build 29 | 13 14 21 20 29 Greatest Support 24 | 20 20 20 20 24 Greatest Overweight (x) 5 | . 4 1 . 5 Average Overweight (x) . | . . . . . Largest Inventory Capacity 10 | 6 8 10 10 10 Average Capacity 8 | 6 6 8 10 10 Most Carried 10 | 6 8 9 10 10 Average Carried 8 | 6 6 7 9 9 Final Capacity 10 | 6 8 10 10 10 Final Carried 10 | 6 8 9 10 8 Class Distribution -------------------- 54% | Sprinter 23% | Mutant 22% | Scavenger-Mutant Dominant Class ---------------- Mutant | -10/Materials Sprinter | -9/Materials Sprinter | -9/Mines Scavenger-Mutant | -8/Materials Resources | -11 -10 -9 -9 -8 ----------- Run | Scr Mat Mat Min Mat Matter Collected 579 | 200 191 62 126 . Remotely . | . . . . . Salvage Created 571 | . 215 143 18 195 Parts 35 | . 15 12 1 7 Haulers Intercepted 1 | . 1 . . . Recyclers Shooed 3 | . 2 . . 1 Parts Field Recycled . | . . . . . Retrieved Matter . | . . . . . Parts Self-Destructed . | . . . . . Prevented . | . . . . . Kills | -11 -10 -9 -9 -8 ------- Run | Scr Mat Mat Min Mat Combat Hostiles Destroyed 17 | . 4 6 3 4 Melee 1 | . . . . 1 Guns 4 | . 4 . . . AOE 12 | . . 6 3 3 Classes Destroyed 8 | . 5 1 . 2 Worker 1 | . . 1 . . Hauler 1 | . 1 . . . Recycler 2 | . 1 . . 1 Watcher 2 | . 1 1 . . Swarmer 9 | . 3 3 3 . Grunt 6 | . 1 3 . 2 Duelist 1 | . . . . 1 Sentry 1 | . . . . 1 Best Kill Streak 8 | . 4 8 3 4 Combat Bots Only 6 | . 4 6 3 3 Max Kills in Single Turn 3 | . 1 2 3 1 Gunslinging . | . . . . . Exploded 3 | . . 2 3 1 Melee 1 | . . . . 1 Uniques/NPCs Destroyed . | . . . . . Combat | -11 -10 -9 -9 -8 -------- Run | Scr Mat Mat Min Mat Damage Taken 1143 | . 101 103 10 929 Core 599 | . 19 19 10 551 Absorbed by Shields . | . . . . . Core Remaining (%) 94 | 100 92 . 92 . Volleys Fired 36 | . 23 6 1 6 Largest 2 | . 2 1 1 1 Hottest 40 | . 40 30 30 30 Shots Fired 46 | . 33 6 1 6 Gun 33 | . 33 . . . Cannon . | . . . . . Launcher 13 | . . 6 1 6 Special . | . . . . . Kinetic 33 | . 33 . . . Thermal . | . . . . . Explosive 13 | . . 6 1 6 Electromagnetic . | . . . . . Robot Hit Streak 13 | . 13 1 2 8 Robot Miss Streak 3 | . 2 3 . . Penetration Max . | . . . . . Secondary Targets . | . . . . . Shots Hit Robots 38 | . 27 2 1 8 Core Hits 34 | . 11 13 3 7 Critical Hits . | . . . . . Critical Kills . | . . . . . Critical Parts Destroyed . | . . . . . Melee Attacks 2 | . . . . 2 Impact . | . . . . . Slashing 2 | . . . . 2 Piercing . | . . . . . Sneak Attacks 1 | . . . . 1 Combat Hostiles . | . . . . . Follow-up Attacks . | . . . . . Damage Inflicted 1481 | . 287 481 166 547 Guns 287 | . 287 . . . Cannons . | . . . . . Explosions 967 | . . 481 166 320 Melee 227 | . . . . 227 Ramming . | . . . . . Kinetic 287 | . 287 . . . Thermal . | . . . . . Explosive 967 | . . 481 166 320 Electromagnetic . | . . . . . Impact . | . . . . . Slashing 227 | . . . . 227 Piercing . | . . . . . Highest Corruption 2 | . 2 . . . Average Corruption 2 | . 2 . . . Corruption Purged . | . . . . . Effects 1 | . 1 . . . Message Errors 1 | . 1 . . . Overload Shots . | . . . . . Overflow Damage 169 | . . 14 9 146 Projectiles . | . . . . . Explosions 32 | . . 14 9 9 Melee 137 | . . . . 137 Knockbacks . | . . . . . Impact . | . . . . . Kinetic . | . . . . . Secondary . | . . . . . Self-Inflicted Damage 181 | . . 39 . 142 Shots 4 | . . 1 . 3 Rammed . | . . . . . Targets Rammed . | . . . . . Kicked . | . . . . . Crushed . | . . . . . Highest Temperature 6 | . . 6 . . Average Temperature 4 | . . 4 . . Received Heat Transfer 204 | . 18 33 . 153 Siege Activations . | . . . . . Robots Corrupted . | . . . . . Combat Hostiles . | . . . . . Parts Fried . | . . . . . Impact Corruptions . | . . . . . Robots Melted . | . . . . . Combat Hostiles . | . . . . . Parts Melted . | . . . . . Heat Transferred . | . . . . . Parts Sabotaged . | . . . . . Parts Stolen . | . . . . . Parts Stripped . | . . . . . Power Chain Reactions . | . . . . . Missiles Intercepted . | . . . . . Alert | -11 -10 -9 -9 -8 ------- Run | Scr Mat Mat Min Mat Peak Influence 184 | . 124 184 141 120 Average Influence 64 | . 68 78 77 36 Maximum Alert Level . | . . . . . Low Security (%) 100 | 100 100 100 100 100 Level 1 . | . . . . . Level 2 . | . . . . . Level 3 . | . . . . . Level 4 . | . . . . . Level 5 . | . . . . . High Security . | . . . . . Max Security . | . . . . . Squads Dispatched 3 | . . 1 1 1 Investigation 2 | . . 1 1 . Extermination . | . . . . . Reinforcement 1 | . . . . 1 Assault . | . . . . . Garrison . | . . . . . Intercept . | . . . . . Construction Impeded . | . . . . . Haulers Reinforced . | . . . . . Stealth | -11 -10 -9 -9 -8 --------- Run | Scr Mat Mat Min Mat Distress Signals . | . . . . . Communications Jammed . | . . . . . Distress Signals . | . . . . . Times Spotted 31 | . 8 10 3 10 Peak Tracking Total 5 | . 4 5 3 5 Tactical Retreats 3 | . . . . 3 Traps | -11 -10 -9 -9 -8 ------- Run | Scr Mat Mat Min Mat Traps Triggered 5 | . 4 1 . . Indirectly . | . . . . . Trap Hack Attempts . | . . . . . Triggered . | . . . . . Disarmed . | . . . . . Reprogrammed . | . . . . . Reused . | . . . . . Traps Extracted . | . . . . . Installed . | . . . . . Triggered . | . . . . . Machines | -11 -10 -9 -9 -8 ---------- Run | Scr Mat Mat Min Mat Machines Disabled 5 | . . 5 . . Max in Single Turn 2 | . . 2 . . Machines Sabotaged . | . . . . . Garrisons Compromised . | . . . . . Overloaded Fab Kills . | . . . . . Fab Network Shutdowns . | . . . . . Hacking | -11 -10 -9 -9 -8 --------- Run | Scr Mat Mat Min Mat Machines Accessed 4 | . . 1 1 2 Terminals 3 | . . 1 . 2 Fabricators . | . . . . . Repair Stations . | . . . . . Recycling Units . | . . . . . Scanalyzers . | . . . . . Garrison Access . | . . . . . Total Hacks 6 | . . 2 1 3 Successful 5 | . . 2 1 2 Failed 1 | . . . . 1 Catastrophic . | . . . . . Database Lockouts . | . . . . . Manual 2 | . . . . 2 Terminals 5 | . . 2 . 3 Fabricators . | . . . . . Repair Stations . | . . . . . Recycling Units . | . . . . . Scanalyzers . | . . . . . Garrison Access . | . . . . . Terminal Hacks 5 | . . 2 1 2 Open Door 1 | . . . 1 . Emergency Access Points 1 | . . . . 1 Unreport Threat 3 | . . 2 . 1 Fabricator Hacks . | . . . . . Repair Station Hacks . | . . . . . Recycling Unit Hacks . | . . . . . Scanalyzer . | . . . . . Garrison Access Hacks . | . . . . . Unauthorized Hacks . | . . . . . Terminals . | . . . . . Fabricators . | . . . . . Repair Stations . | . . . . . Recycling Units . | . . . . . Scanalyzers . | . . . . . Garrison Access . | . . . . . Data Cores Recovered . | . . . . . Used . | . . . . . Hacking Detections 3 | . . 1 . 2 Full Trace Events . | . . . . . Feedback Events . | . . . . . Feedback Blocked . | . . . . . Robot Schematics Acquired . | . . . . . Robots Built . | . . . . . Matter . | . . . . . Time . | . . . . . Total Robot Build Rating . | . . . . . Part Schematics Acquired . | . . . . . Parts Built . | . . . . . Matter . | . . . . . Time . | . . . . . Total Part Build Rating . | . . . . . Parts Repaired . | . . . . . Time . | . . . . . Parts Recycled . | . . . . . Recycled Matter . | . . . . . Retrieved Matter . | . . . . . Retrieved Components . | . . . . . Parts Scanalyzed . | . . . . . Part Schematics Acquired . | . . . . . Parts Damaged . | . . . . . Bothacking | -11 -10 -9 -9 -8 ------------ Run | Scr Mat Mat Min Mat Used RIF Installer . | . . . . . Robots Hacked . | . . . . . Non-combat . | . . . . . Combat . | . . . . . Robot Hacks Applied . | . . . . . Relay Couplers Released . | . . . . . Robots Rewired . | . . . . . Allies Hacked . | . . . . . Hacks Repelled . | . . . . . Allies | -11 -10 -9 -9 -8 -------- Run | Scr Mat Mat Min Mat Total Allies . | . . . . . Largest Group . | . . . . . Highest-Rated Group . | . . . . . Highest-Rated Ally . | . . . . . Total Orders . | . . . . . Ally Attacks . | . . . . . Total Damage . | . . . . . Kills . | . . . . . Allies Corrupted . | . . . . . Allies Melted . | . . . . . Intel | -11 -10 -9 -9 -8 ------- Run | Scr Mat Mat Min Mat Robot Analysis Total . | . . . . . Derelict Logs Recovered . | . . . . . Drone Launches . | . . . . . Drone Recoveries . | . . . . . Exploration | -11 -10 -9 -9 -8 ------------- Run | Scr Mat Mat Min Mat Turns Passed 1020 | 14 330 142 291 243 Spaces Moved 946 | 12 191 140 424 179 Core 9 | . 2 . . 7 Treads . | . . . . . Legs 201 | 12 189 . . . Wheels . | . . . . . Hover . | . . . . . Flight 736 | . . 140 424 172 Fastest Speed 28 | 120 120 31 31 28 Average Speed 60 | 120 121 37 31 80 Slowest Speed 300 | 120 250 111 31 300 Overloaded Moves . | . . . . . Propulsion Burnouts . | . . . . . Robots Hopped 3 | . . . 3 . Cave-ins Triggered . | . . . . . Exploration Rate (%) 32 | 2 41 23 71 23 Regions Visited 4 Branch Regions 1 Pre-discovered Areas 1 | . . . 1 . Known Exits Taken . | . . . . . Unknown Exits Taken 4 | 1 1 1 1 . Scrap Searched 2 | . . . 2 . Spaces Dug . | . . . . . Terrain Destroyed 61 | . . 21 9 31 Melee . | . . . . . Projectile . | . . . . . AOE 61 | . . 21 9 31 Actions | -11 -10 -9 -9 -8 --------- Run | Scr Mat Mat Min Mat Total 1346 | 11 259 224 581 271 Wait 281 | . 12 58 144 67 Move 936 | 11 190 139 417 179 Hop 3 | . . . 3 . Pick Up 24 | . 9 7 6 2 Fast Attach 14 | . 9 1 1 3 Attach 8 | . . 4 . 4 Detach 4 | . . 1 1 2 Swap 8 | . 4 3 1 . Drop 30 | . 12 5 7 6 Fire 36 | . 23 6 1 6 Melee 2 | . . . . 2 Ram . | . . . . . Kick . | . . . . . Crush . | . . . . . Escape Stasis . | . . . . . Rewire . | . . . . . Trap . | . . . . . Miscellaneous . | . . . . . Route ------- -11/Scrapyard -10/Materials -9/Materials -9/Mines -8/Materials History --------- Turn | Location | Event 1 | -11/Scrapyard | Discovered new exit (range 2) 15 | -11/Scrapyard | Entered Materials 300 | -10/Materials | Discovered new exit (range 4) 345 | -10/Materials | Entered another Materials area 345 | -9/Materials | Evolved 2 slots: Propulsion x2 462 | -9/Materials | Discovered new exit (range 10) 487 | -9/Materials | Entered Mines 603 | -9/Mines | Build established: Sprinter 611 | -9/Mines | Met a Derelict shopkeep closing up shop 648 | -9/Mines | Learned location of Storage (-9) 759 | -9/Mines | Discovered new exit (range 5) 778 | -9/Mines | Entered Materials 778 | -8/Materials | Evolved 2 slots: Power x1, Propulsion x1 1009 | -8/Materials | Core integrity fell below 50% 1015 | -8/Materials | Core integrity fell below 20% 1021 | -8/Materials | Destroyed by Y-45 Defender with Heavy Assault Rifle Last Messages --------------- 00964_ VTOL Module destroyed. 00969_ O-16 Technician: "IFF HANDSHAKE FAILED. SECURING TERMINAL." 00970_ ALERT: Hostiles spotted, dispatching reinforcements to Terminal M003. 00972_ K-01 Serf cleans the Terminal. 00982_ VTOL Module destroyed. 00986_ Flight Unit destroyed. 00986_ Dropped VTOL Module. 01009_ Penetrated by Slug. 01009_ G-47 Trooper destroyed. 01011_ Mni. Grenade Launcher destroyed. 01011_ Destroyed Mni. Grenade Launcher. 01012_ Penetrated by Slug. 01014_ L-31 Rogue destroyed. 01014_ K-01 Serf collects debris. 01017_ U-05 Engineer lays Concrete. 01019_ U-05 Engineer builds a Wall. 01019_ U-05 Engineer lays Concrete. 01020_ Y-45 Defender destroyed. 01020_ U-05 Engineer lays Concrete. Map ----- +----------------------------------------------------+ | ?????????????????????????????????????????????????? | | ????????????###########??????????????????????????? | | ????????????# #??????????????????????????? | | ????????????# """ ####################### | | ############# """ / | | # """ / ################ ###### ! | | + ""#?????# = ???# #?????????? | | # T"#?????# ??# #?????????? | | ######### # ""#?????# """ # #?????????? | | # # ] #?????# """""# #?????????? | | T ! # ##############??# """""# #?????####? | | # #?????? ? ??# """""# #???? #? | | # #?????? ? ??# """ # ###?? #? | | ######### #??????? ??# ??# +? #? | | ????????# #??????? ??# ????# #? #? | | ###????? ######## # ####+####### # #? | | /#????# # #? | | /#????# / + #? | | !!#????# %] ] # #? | | !!#????# ###+### %Y #### ######+# #? | | [[#????####### !## #????" #? #? | | [[#??????????# u = ## #????" #? #? | | ###??????????# ## +??? #?? #? | | ?????????????# # #??? #?? #? | | ????????????# % # #?? #???####? | | #???????????# @ # #?? #???????? | | #???????????# ## #?+#####???????? | | #???????????# # ## #??????????????? | | #???????????# ###u# ### #??????????????? | | ?#???????????########???#h###?# #??????????????? | | ???????????????????????? ??? #??????????????? | | ???????????????????????? ??? #??????????????? | | ???????????????????????? ??? ???????????????? | | ????????????????????????+##???####???????????????? | | ???????????????????????? ????????????????????????? | | ???????????????????????? ????????????????????????? | | ???????????????????????? ????????????????????????? | | ???????????????????????? ????????????????????????? | | ??????????????????????? ????????????????????????? | | ??????????????????????? ????????????????????????? | | ???????????????????????+#????????????????????????? | | ??????????????????????? ?????????????????????????? | | ??????????????????????? ?????????????????????????? | | ?????????????????????????????????????????????????? | | ?????????????????????????????????????????????????? | | ?????????????????????????????????????????????????? | | ?????????????????????????????????????????????????? | | ?????????????????????????????????????????????????? | | ?????????????????????????????????????????????????? | | ?????????????????????????????????????????????????? | +----------------------------------------------------+ Best States ------------- Heat Dissipation 31 Energy Generation 19 Energy Capacity 250 Matter Stores 300 Matter Capacity 300 Sight Range 18 Terrain Scan Density 10 Evasion (%) 64 Item Schematics ----------------- None Robot Schematics ------------------ None Fabricated ------------ Nothing Alien Tech Used ----------------- None Achievements -------------- None Challenges ------------ None Game ------ Seed SuspensionHackingMachine Manual? 0 Play Time 00:29:13 Cumulative 234.4 hours Start 2020.03.19 @ 21:37:16 End 2020.03.20 @ 21:04:46 Sessions 2 Manual Loads 0 Difficulty Rogue Special Mode None Game No. 362 Rogue 361 Adventurer 0 Explorer 1 Win Type - Total 1 Types 1/0/0/0/0/0/0 Lore% 65 Gallery% 78 Achievement% 53 Wizard Run 0 Options --------- ASCII 0 Keyboard 1 Movement Vi Keybinds 0 Fullscreen 1 Font 14/Cog Map View 72x52 Tactical HUD 1 Map Filters NONE Filters LOW_CONTRAST(13,24,33) Steam 0 RUN: 8c9c6d98-2afc-4ee4-ae12-3c1a3105d6ad